Workbook

Sheet Sheet1
M1: Приложение № 2
K2: к Муниципальному контракту № _________ от «_____» _________ 2025 г
A4: Утверждаю: Директор ООО «Нигма» __________________ Л.Р. Гильфанова | J4: Согласовано: Руководитель образования__________________________________ _________________________________________________________ ____________________
A6: ДВУХНЕДЕЛЬНОЕ ЦИКЛИЧНОЕ МЕНЮ ГОРЯЧЕГО ПИТАНИЯ (ГОРЯЧИЙ ЗАВТРАК 1) ДЛЯ ОБУЧАЮЩИХСЯ В ОБЩЕОБРАЗОВАТЕЛЬНЫХ ОРГАНИЗАЦИЯХ С 5-11 КЛАССЫ ГОРОДА МЕНДЕЛЕЕВСКА И МЕНДЕЛЕЕВСКОГО РАЙОНА НА 2026 УЧЕБНЫЙ ГОД
A7: ПЕРИОД : ЗИМА - ВЕСНА
B8: 1-ая неделя
B9: 1 день
B10: Завтрак
A11: 47/2017 | B11: Салат из квашеной капусты (без лука) | F11: 100 | G11: 1.71 | H11: 5.00 | I11: 8.46 | J11: 85.70 | K11: 0.02 | L11: 19.81 | M11: 0.00 | N11: 0.40 | O11: 52.24 | P11: 33.95 | Q11: 16.01 | R11: 0.70
A12: ТТК № 9 | B12: Фрикадельки «Особые» в томатном соусе | F12: 100 | G12: 9.54 | H12: 12.04 | I12: 9.93 | J12: 186.24 | K12: 0.01 | L12: 0.11 | M12: 0.33 | N12: 0.11 | O12: 186.25 | P12: 6.20 | Q12: 25.18 | R12: 0.15
A13: № 203/ 2017 | B13: Макаронные изделия отварные | F13: 180 | G13: 6.12 | H13: 5.36 | I13: 34.20 | J13: 224.40 | K13: 0.03 | L13: 0.00 | M13: 0.12 | N13: 0.97 | O13: 19.75 | P13: 68.40 | Q13: 10.17 | R13: 1.04
A14: ТТК №3 | B14: Напиток из смеси сухофруктов | F14: 200 | G14: 0.50 | H14: 0.02 | I14: 19.43 | J14: 79.92 | K14: 0.00 | L14: 0.03 | M14: 0.00 | N14: 0.00 | O14: 17.25 | P14: 28.80 | Q14: 13.80 | R14: 0.95
A15: № 1 / 2017 | B15: Хлеб пшеничный | F15: 50 | G15: 3.80 | H15: 0.40 | I15: 24.60 | J15: 118.33 | K15: 0.05 | L15: 0.00 | M15: 0.00 | N15: 0.55 | O15: 10.00 | P15: 32.50 | Q15: 7.00 | R15: 0.55
B16: итого | G16: =SUM(G11:G15) -> 21.67 | H16: =SUM(H11:H15) -> 22.82 | I16: 96.62 | J16: 694.59 | K16: 0.11 | L16: 19.95 | M16: 0.45 | N16: 2.03 | O16: 285.49 | P16: 169.85 | Q16: 72.16 | R16: 3.39
B17: 2 день
B18: Завтрак
A19: №25/2004 | B19: Салат «Степной» | F19: 100 | G19: 2.15 | H19: 8.27 | I19: 11.90 | J19: 130.50 | K19: 0.17 | L19: 17.30 | M19: 0.00 | N19: 0.10 | O19: 40.40 | P19: 78.30 | Q19: 23.40 | R19: 1.02
A20: № 289/ 2017 | B20: Рагу из филе куриной грудки | F20: 230 | G20: 17.37 | H20: 15.62 | I20: 20.01 | J20: 290.50 | K20: 0.12 | L20: 15.30 | M20: 0.53 | N20: 7.30 | O20: 51.30 | P20: 190.70 | Q20: 27.40 | R20: 1.61
A21: № 377/ 2017 | B21: Чай с лимоном полусладкий | F21: 200/10/7 | G21: 0.27 | H21: 0.06 | I21: 15.23 | J21: 63.00 | K21: 0.00 | L21: 2.80 | M21: 0.00 | N21: 0.01 | O21: 3.25 | P21: 1.54 | Q21: 0.84 | R21: 0.10
A22: № 1 / 2017 | B22: Хлеб пшеничный | F22: 50 | G22: 3.80 | H22: 0.40 | I22: 24.60 | J22: 118.33 | K22: 0.05 | L22: 0.00 | M22: 0.00 | N22: 0.55 | O22: 10.00 | P22: 32.50 | Q22: 7.00 | R22: 0.55
B23: итого | G23: =SUM(G19:G22) -> 23.59 | H23: =SUM(H19:H22) -> 24.35 | I23: 71.74 | J23: 602.33 | K23: 0.34 | L23: 35.40 | M23: 0.53 | N23: 7.96 | O23: 104.95 | P23: 303.04 | Q23: 58.64 | R23: 3.28
B24: 3 день
B25: Завтрак
A26: № 338/ 2017 | B26: Яблоки свежие | F26: 100 | G26: 0.40 | H26: 0.40 | I26: 7.35 | J26: 47.00 | K26: 0.03 | L26: 8.00 | M26: 0.00 | N26: 0.10 | O26: 16.00 | P26: 11.00 | Q26: 9.00 | R26: 0.03
A27: ТТК № 22 | B27: Биточки куриные "Рябушка" с соусом томатным | F27: 100 | G27: 8.00 | H27: 9.74 | I27: 12.20 | J27: 174.52 | K27: 0.07 | L27: 0.93 | M27: 0.03 | N27: 0.20 | O27: 21.70 | P27: 114.72 | Q27: 21.64 | R27: 1.04
A28: № 173 /2017 | B28: Каша пшенная вязкая | F28: 180 | G28: 5.02 | H28: 6.01 | I28: 33.60 | J28: 210.00 | K28: 0.10 | L28: 0.00 | M28: 0.25 | N28: 0.98 | O28: 19.80 | P28: 102.60 | Q28: 10.20 | R28: 1.32
A29: № 388/ 2017 | B29: Напиток из шиповника | F29: 200 | G29: 0.68 | H29: 0.30 | I29: 20.76 | J29: 88.20 | K29: 0.01 | L29: 29.00 | M29: 0.00 | N29: 0.24 | O29: 21.34 | P29: 3.44 | Q29: 3.44 | R29: 0.63
A30: № 1 / 2017 | B30: Хлеб пшеничный | F30: 50 | G30: 3.80 | H30: 0.40 | I30: 24.60 | J30: 118.33 | K30: 0.05 | L30: 0.00 | M30: 0.00 | N30: 0.55 | O30: 10.00 | P30: 32.50 | Q30: 7.00 | R30: 0.55
B31: итого | G31: =SUM(G26:G30) -> 17.90 | H31: 16.85 | I31: 98.51 | J31: 638.05 | K31: 0.26 | L31: 37.93 | M31: 0.28 | N31: 2.07 | O31: 88.84 | P31: 264.26 | Q31: 51.28 | R31: 3.57
B32: 4 день
B33: Завтрак
A34: 21/2017 | B34: Салат из соленых огурцов с луком | F34: 100 | G34: 0.85 | H34: 5.03 | I34: 2.57 | J34: 59.17 | K34: 0.15 | L34: 17.50 | M34: 0.00 | N34: 0.04 | O34: 23.73 | P34: 23.33 | Q34: 13.33 | R34: 0.67
A35: № 256/ 2017 | B35: Мясо говядины тушенное в соусе | F35: 100 | G35: 15.20 | H35: 17.38 | I35: 2.56 | J35: 225.00 | K35: 0.03 | L35: 0.18 | M35: 0.00 | N35: 0.10 | O35: 21.23 | P35: 159.30 | Q35: 23.06 | R35: 1.45
A36: № 312/ 2017 | B36: Пюре картофельное | F36: 180 | G36: 3.71 | H36: 9.94 | I36: 26.40 | J36: 206.40 | K36: 0.19 | L36: 9.53 | M36: 0.10 | N36: 3.60 | O36: 57.36 | P36: 118.56 | Q36: 9.60 | R36: 0.00
A37: № 377/2017 | B37: Чай с лимоном полусладкий | F37: 200/10/7 | G37: 0.27 | H37: 0.06 | I37: 15.23 | J37: 63.00 | K37: 0.00 | L37: 2.80 | M37: 0.00 | N37: 0.01 | O37: 3.25 | P37: 1.54 | Q37: 0.84 | R37: 0.10
A38: № 1 / 2017 | B38: Хлеб пшеничный | F38: 50 | G38: 3.80 | H38: 0.40 | I38: 24.60 | J38: 118.33 | K38: 0.05 | L38: 0.00 | M38: 0.00 | N38: 0.55 | O38: 10.00 | P38: 32.50 | Q38: 7.00 | R38: 0.55
B39: итого | G39: =SUM(G34:G38) -> 23.83 | H39: 32.81 | I39: 71.36 | J39: 671.90 | K39: 0.42 | L39: 30.01 | M39: 0.10 | N39: 4.30 | O39: 115.57 | P39: 335.23 | Q39: 53.83 | R39: 2.77
B40: 5 день
B41: Завтрак
A42: № 338/ 2017 | B42: Мандарины свежие | F42: 90 | G42: 0.63 | H42: 0.17 | I42: 17.10 | J42: 72.00 | K42: 0.04 | L42: 29.60 | M42: 0.00 | N42: 0.13 | O42: 27.81 | P42: 11.83 | Q42: 7.65 | R42: 0.09
A43: № 243 /2017 | B43: Сосиски отварные | F43: 100 | G43: 7.40 | H43: 10.90 | I43: 3.80 | J43: 142.90 | K43: 0.03 | L43: 0.00 | M43: 0.00 | N43: 1.00 | O43: 35.00 | P43: 139.00 | Q43: 16.00 | R43: 0.00
A44: № 173/ 2017 | B44: Каша пшеничная вязкая с маслом | F44: 180/5 | G44: 4.80 | H44: 6.00 | I44: 29.46 | J44: 182.90 | K44: 0.10 | L44: 0.00 | M44: 0.00 | N44: 0.56 | O44: 18.77 | P44: 121.20 | Q44: 25.92 | R44: 1.04
A45: ТТК № 437 | B45: Чай полусладкий с молоком | F45: 200 | G45: 1.68 | H45: 1.25 | I45: 7.53 | J45: 48.09 | K45: 0.02 | L45: 2.10 | M45: 0.01 | N45: 0.00 | O45: 76.50 | P45: 48.70 | Q45: 8.80 | R45: 0.43
A46: № 1 / 2017 | B46: Хлеб пшеничный | F46: 50 | G46: 3.80 | H46: 0.40 | I46: 24.60 | J46: 118.33 | K46: 0.05 | L46: 0.00 | M46: 0.00 | N46: 0.55 | O46: 10.00 | P46: 32.50 | Q46: 7.00 | R46: 0.55
B47: итого | G47: =SUM(G42:G46) -> 18.31 | H47: =SUM(H42:H46) -> 18.72 | I47: 82.49 | J47: 564.22 | K47: 0.24 | L47: 31.70 | M47: 0.01 | N47: 2.24 | O47: 168.08 | P47: 353.23 | Q47: 65.37 | R47: 2.11
B48: 6 день
B49: Завтрак
A50: 53/2017 | B50: Салат из свеклы с зеленым горошком | F50: 100 | G50: 1.65 | H50: 4.12 | I50: 7.30 | J50: 72.83 | K50: 0.03 | L50: 6.87 | M50: 0.02 | N50: 0.20 | O50: 28.33 | P50: 41.67 | Q50: 18.33 | R50: 1.30
A51: ТТК № 37 | B51: Котлеты куриные "Любимые" с соусом томатным | F51: 100 | G51: 8.13 | H51: 7.05 | I51: 14.65 | J51: 154.57 | K51: 0.04 | L51: 0.03 | M51: 0.15 | N51: 0.85 | O51: 24.17 | P51: 85.10 | Q51: 13.55 | R51: 0.98
A52: № 303/ 2017 | B52: Каша рисовая вязкая | F52: 180 | G52: 4.80 | H52: 5.09 | I52: 29.46 | J52: 182.88 | K52: 0.10 | L52: 0.00 | M52: 0.00 | N52: 0.56 | O52: 18.77 | P52: 121.20 | Q52: 25.92 | R52: 0.84
A53: ТТК №3 | B53: Напиток из смеси сухофруктов | F53: 200 | G53: 0.50 | H53: 0.02 | I53: 19.43 | J53: 79.92 | K53: 0.00 | L53: 0.03 | M53: 0.00 | N53: 0.00 | O53: 17.25 | P53: 28.80 | Q53: 13.80 | R53: 1.95
A54: Пром. | B54: Печенье | F54: 46 | G54: 4.10 | H54: 5.36 | I54: 50.90 | J54: 228.20 | K54: 0.05 | L54: 0.00 | M54: 0.00 | N54: 1.46 | O54: 15.90 | P54: 37.80 | Q54: 7.00 | R54: 1.14
A55: № 1 / 2017 | B55: Хлеб пшеничный | F55: 50 | G55: 3.80 | H55: 0.40 | I55: 24.60 | J55: 118.33 | K55: 0.05 | L55: 0.00 | M55: 0.00 | N55: 0.55 | O55: 10.00 | P55: 32.50 | Q55: 7.00 | R55: 0.55
B56: итого | G56: =SUM(G50:G55) -> 22.98 | H56: 22.04 | I56: 146.34 | J56: 836.73 | K56: 0.27 | L56: 6.93 | M56: 0.17 | N56: 3.62 | O56: 114.42 | P56: 347.07 | Q56: 85.60 | R56: 6.76
G58: Белки г | H58: Жиры г | I58: Углеводы г | J58: Калорийность | K58: Витамин В1 мг | L58: Витамин С,мг | M58: Витамин А мг | N58: Витамин Е мг | O58: СА, мг | P58: Р, мг | Q58: Мg, мг | R58: Fe, мг
A59: ИТОГО ЗА НЕДЕЛЮ: | G59: =SUM(G16+G23+G31+G39+G47+G56) -> 128.28 | H59: 137.59 | I59: 567.06 | J59: 4007.82 | K59: 1.64 | L59: 161.92 | M59: 1.54 | N59: 22.22 | O59: 877.35 | P59: 1772.68 | Q59: 386.88 | R59: 21.88
A60: В среднем в день: | G60: =AVERAGE(G59/6) -> 21.38 | H60: =AVERAGE(H59/6) -> 22.93 | I60: 94.51 | J60: 667.97 | K60: 0.27 | L60: 26.99 | M60: 0.26 | N60: 3.70 | O60: 146.23 | P60: 295.45 | Q60: 64.48 | R60: 3.65
A62: № рецептуры | B62: Наименования блюд | F62: выход | G62: Белки г | H62: Жиры г | I62: Углеводы г | J62: Калорийность | K62: Витамин В1 мг | L62: Витамин С,мг | M62: Витамин А мг | N62: Витамин Е мг | O62: СА, мг | P62: Р, мг | Q62: Мg, мг | R62: Fe, мг
B63: 2-ая неделя
B64: 1 день
B65: Завтрак
A66: № 338/ 2017 | B66: Яблоки свежие | F66: 100 | G66: 0.40 | H66: 0.40 | I66: 7.35 | J66: 47.00 | K66: 0.03 | L66: 8.00 | M66: 0.00 | N66: 0.10 | O66: 16.00 | P66: 11.00 | Q66: 9.00 | R66: 0.03
A67: № 290/ 2017 | B67: Филе куриной грудки тушеной в соусе | F67: 100 | G67: 10.65 | H67: 10.76 | I67: 11.63 | J67: 185.96 | K67: 0.00 | L67: 6.33 | M67: 0.00 | N67: 0.96 | O67: 85.19 | P67: 63.20 | Q67: 15.72 | R67: 1.80
A68: № 203/ 2017 | B68: Макаронные изделия отварные | F68: 180 | G68: 6.12 | H68: 5.36 | I68: 34.20 | J68: 224.40 | K68: 0.03 | L68: 0.00 | M68: 0.12 | N68: 0.97 | O68: 19.75 | P68: 68.40 | Q68: 10.17 | R68: 1.04
A69: № 377/2017 | B69: Чай с лимоном полусладкий | F69: 200/10/7 | G69: 0.27 | H69: 0.06 | I69: 15.23 | J69: 63.00 | K69: 0.00 | L69: 2.80 | M69: 0.00 | N69: 0.01 | O69: 3.25 | P69: 1.54 | Q69: 0.84 | R69: 0.10
A70: № 1 / 2017 | B70: Хлеб пшеничный | F70: 50 | G70: 3.80 | H70: 0.40 | I70: 24.60 | J70: 118.33 | K70: 0.05 | L70: 0.00 | M70: 0.00 | N70: 0.55 | O70: 10.00 | P70: 32.50 | Q70: 7.00 | R70: 0.55
B71: итого | G71: =SUM(G66:G70) -> 21.24 | H71: =SUM(H66:H70) -> 16.98 | I71: 93.01 | J71: 638.69 | K71: 0.11 | L71: 17.13 | M71: 0.12 | N71: 2.59 | O71: 134.19 | P71: 176.64 | Q71: 42.73 | R71: 3.52
B72: 2 день
B73: Завтрак
A74: ТТК № 994 | B74: Салат «Пестрый» | F74: 100 | G74: 2.83 | H74: 6.12 | I74: 18.46 | J74: 140.36 | K74: 0.08 | L74: 8.33 | M74: 0.15 | N74: 0.30 | O74: 61.86 | P74: 54.70 | Q74: 11.32 | R74: 2.30
A75: ТТК № 26 | B75: Котлеты Татарские с соусом томатным | F75: 100 | G75: 7.16 | H75: 13.12 | I75: 5.43 | J75: 168.44 | K75: 0.01 | L75: 1.22 | M75: 0.01 | N75: 0.10 | O75: 15.06 | P75: 75.81 | Q75: 15.84 | R75: 0.84
A76: № 304/ 2017 | B76: Рис отварной | F76: 180 | G76: 4.38 | H76: 6.45 | I76: 44.00 | J76: 251.64 | K76: 0.03 | L76: 0.00 | M76: 0.00 | N76: 0.81 | O76: 1.64 | P76: 73.13 | Q76: 19.06 | R76: 0.63
A77: ТТК №3 | B77: Напиток из смеси сухофруктов | F77: 200 | G77: 0.50 | H77: 0.02 | I77: 19.43 | J77: 79.92 | K77: 0.00 | L77: 0.03 | M77: 0.00 | N77: 0.00 | O77: 17.25 | P77: 28.80 | Q77: 13.80 | R77: 1.95
A78: № 1 / 2017 | B78: Хлеб пшеничный | F78: 50 | G78: 3.80 | H78: 0.40 | I78: 24.60 | J78: 118.33 | K78: 0.05 | L78: 0.00 | M78: 0.00 | N78: 0.55 | O78: 10.00 | P78: 32.50 | Q78: 7.00 | R78: 0.55
A79: Пром. | B79: Печенье | F79: 23 | G79: 2.46 | H79: 3.22 | I79: 20.52 | J79: 120.90 | K79: 0.03 | L79: 0.00 | M79: 0.00 | N79: 0.10 | O79: 9.52 | P79: 10.30 | Q79: 4.20 | R79: 0.68
B80: итого | G80: =SUM(G74:G79) -> 21.13 | H80: =SUM(H74:H79) -> 29.33 | I80: 132.44 | J80: 879.59 | K80: 0.20 | L80: 9.58 | M80: 0.16 | N80: 1.86 | O80: 115.33 | P80: 275.24 | Q80: 71.22 | R80: 6.95
B81: 3 день
B82: Завтрак
A83: № 338/ 2017 | B83: Яблоки свежие | F83: 100 | G83: 0.40 | H83: 0.40 | I83: 7.35 | J83: 47.00 | K83: 0.03 | L83: 8.00 | M83: 0.00 | N83: 0.10 | O83: 16.00 | P83: 11.00 | Q83: 9.00 | R83: 0.03
A84: ТТК № 20 | B84: Гречка Полевая с мясом говядины | F84: 230 | G84: 17.20 | H84: 18.12 | I84: 35.89 | J84: 394.05 | K84: 0.18 | L84: 4.78 | M84: 0.10 | N84: 0.86 | O84: 31.57 | P84: 184.20 | Q84: 61.15 | R84: 2.56
A85: № 388/2017 | B85: Напиток из шиповника | F85: 200 | G85: 0.68 | H85: 0.30 | I85: 20.76 | J85: 88.20 | K85: 0.00 | L85: 29.00 | M85: 0.00 | N85: 0.00 | O85: 24.00 | P85: 34.32 | Q85: 12.00 | R85: 1.20
A86: Пром. | B86: Пряники | F86: 42 | G86: 1.96 | H86: 1.36 | I86: 26.86 | J86: 189.00 | K86: 0.04 | L86: 0.00 | M86: 0.00 | N86: 0.91 | O86: 13.00 | P86: 19.00 | Q86: 3.42 | R86: 0.30
A87: № 1 / 2017 | B87: Хлеб пшеничный | F87: 50 | G87: 3.80 | H87: 0.40 | I87: 24.60 | J87: 118.33 | K87: 0.05 | L87: 0.00 | M87: 0.00 | N87: 0.55 | O87: 10.00 | P87: 32.50 | Q87: 7.00 | R87: 0.55
B88: итого | G88: =SUM(G83:G87) -> 24.04 | H88: =SUM(H83:H87) -> 20.58 | I88: 115.46 | J88: 836.58 | K88: 0.30 | L88: 41.78 | M88: 0.10 | N88: 2.42 | O88: 94.57 | P88: 281.02 | Q88: 92.57 | R88: 4.64
B89: 4 день
B90: Завтрак
A91: 47/2017 | B91: Салат из квашеной капусты (без лука) | F91: 100 | G91: 1.71 | H91: 5.00 | I91: 8.46 | J91: 85.70 | K91: 0.02 | L91: 19.81 | M91: 0.00 | N91: 0.40 | O91: 52.24 | P91: 33.95 | Q91: 16.01 | R91: 0.02
A92: ТТК № 497н | B92: Биточки рыбные Любительские с соусом | F92: 100 | G92: 7.81 | H92: 6.94 | I92: 7.52 | J92: 123.75 | K92: 0.07 | L92: 2.64 | M92: 0.04 | N92: 0.61 | O92: 35.80 | P92: 127.32 | Q92: 25.40 | R92: 0.80
A93: № 312/ 2017 | B93: Пюре картофельное | F93: 180 | G93: 3.71 | H93: 9.94 | I93: 26.40 | J93: 206.40 | K93: 0.19 | L93: 9.53 | M93: 0.10 | N93: 3.60 | O93: 57.36 | P93: 118.56 | Q93: 9.60 | R93: 0.00
A94: № 342/2017 | B94: Напиток из свежих яблок | F94: 200 | G94: 0.20 | H94: 0.20 | I94: 18.40 | J94: 76.30 | K94: 0.00 | L94: 1.60 | M94: 0.00 | N94: 0.30 | O94: 13.00 | P94: 4.40 | Q94: 4.40 | R94: 0.80
A95: № 1 / 2017 | B95: Хлеб пшеничный | F95: 50 | G95: 3.80 | H95: 0.40 | I95: 24.60 | J95: 118.33 | K95: 0.05 | L95: 0.00 | M95: 0.00 | N95: 0.55 | O95: 10.00 | P95: 32.50 | Q95: 7.00 | R95: 0.55
B96: итого | G96: =SUM(G91:G95) -> 17.23 | H96: =SUM(H91:H95) -> 22.48 | I96: 85.38 | J96: 610.48 | K96: 0.33 | L96: 33.58 | M96: 0.14 | N96: 5.46 | O96: 168.40 | P96: 316.73 | Q96: 62.41 | R96: 2.17
B97: 5 день
B98: Завтрак
A99: № 67/2017 | B99: Винегрет овощной "Дары осени" | F99: 100 | G99: 1.93 | H99: 7.20 | I99: 7.87 | J99: 125.10 | K99: 0.04 | L99: 9.63 | M99: 0.00 | N99: 0.05 | O99: 31.20 | P99: 43.30 | Q99: 19.53 | R99: 0.83
A100: № 291/ 2017 | B100: Плов из филе куриной грудки | F100: 230 | G100: 15.31 | H100: 14.27 | I100: 25.69 | J100: 292.43 | K100: 0.24 | L100: 5.64 | M100: 0.12 | N100: 1.38 | O100: 95.53 | P100: 300.95 | Q100: 46.52 | R100: 2.19
A101: № 377/2017 | B101: Чай с лимоном полусладкий | F101: 200/10/7 | G101: 0.27 | H101: 0.06 | I101: 15.23 | J101: 63.00 | K101: 0.00 | L101: 2.80 | M101: 0.00 | N101: 0.01 | O101: 3.25 | P101: 1.54 | Q101: 0.84 | R101: 0.10
A102: № 1 / 2017 | B102: Хлеб пшеничный | F102: 50 | G102: 3.80 | H102: 0.40 | I102: 24.60 | J102: 118.33 | K102: 0.05 | L102: 0.00 | M102: 0.00 | N102: 0.55 | O102: 10.00 | P102: 32.50 | Q102: 7.00 | R102: 0.55
B103: итого | G103: =SUM(G99:G102) -> 21.31 | H103: 21.93 | I103: 73.39 | J103: 598.86 | K103: 0.33 | L103: 18.07 | M103: 0.12 | N103: 1.99 | O103: 139.98 | P103: 378.29 | Q103: 73.89 | R103: 3.67
B104: 6 день
B105: Завтрак
A106: ТТК № 390 | B106: Салат «Веснушка» | F106: 100 | G106: 2.57 | H106: 10.08 | I106: 10.75 | J106: 143.97 | K106: 0.08 | L106: 15.52 | M106: 0.64 | N106: 0.22 | O106: 37.03 | P106: 73.30 | Q106: 28.65 | R106: 0.97
A107: ТТК № 22 | B107: Биточки куриные "Рябушка" с соусом томатным | F107: 100 | G107: 8.00 | H107: 9.74 | I107: 12.20 | J107: 174.52 | K107: 0.07 | L107: 0.93 | M107: 0.03 | N107: 0.20 | O107: 21.70 | P107: 114.72 | Q107: 21.64 | R107: 0.13
A108: № 173/2017 | B108: Каша гречневая вязкая | F108: 180 | G108: 5.40 | H108: 6.01 | I108: 34.20 | J108: 224.40 | K108: 0.11 | L108: 0.00 | M108: 0.12 | N108: 0.98 | O108: 19.75 | P108: 68.41 | Q108: 10.18 | R108: 1.04
A109: ТТК № 1 | B109: Чай полусладкий | F109: 200 | G109: 0.20 | H109: 0.00 | I109: 5.06 | J109: 21.04 | K109: 0.00 | L109: 0.00 | M109: 0.10 | N109: 0.00 | O109: 5.05 | P109: 8.25 | Q109: 4.40 | R109: 0.84
A110: Пром. | B110: Печенье | F110: 46 | G110: 4.10 | H110: 5.36 | I110: 50.90 | J110: 228.20 | K110: 0.05 | L110: 0.00 | M110: 0.00 | N110: 1.46 | O110: 15.90 | P110: 37.80 | Q110: 7.00 | R110: 1.14
A111: № 1 / 2017 | B111: Хлеб пшеничный | F111: 50 | G111: 3.80 | H111: 0.40 | I111: 24.60 | J111: 118.33 | K111: 0.05 | L111: 0.00 | M111: 0.00 | N111: 0.55 | O111: 10.00 | P111: 32.50 | Q111: 7.00 | R111: 0.55
B112: итого | G112: =SUM(G106:G111) -> 24.07 | H112: 31.59 | I112: 137.71 | J112: 910.46 | K112: 0.36 | L112: 16.45 | M112: 0.89 | N112: 3.41 | O112: 109.43 | P112: 334.98 | Q112: 78.87 | R112: 4.67
G114: Белки г | H114: Жиры г | I114: Углеводы г | J114: Калорийность | K114: Витамин В1 мг | L114: Витамин С,мг | M114: Витамин А мг | N114: Витамин Е мг | O114: СА, мг | P114: Р, мг | Q114: Мg, мг | R114: Fe, мг
A115: ИТОГО ЗА НЕДЕЛЮ: | G115: =SUM(G71+G80+G88+G96+G103+G112) -> 129.02 | H115: 142.89 | I115: 637.39 | J115: 4474.66 | K115: 1.63 | L115: 136.59 | M115: 1.53 | N115: 17.73 | O115: 761.90 | P115: 1762.90 | Q115: 421.69 | R115: 25.62
A116: В среднем в день: | G116: =AVERAGE(G115/6) -> 21.50 | H116: =AVERAGE(H115/6) -> 23.82 | I116: 106.23 | J116: 745.78 | K116: 0.27 | L116: 22.77 | M116: 0.26 | N116: 2.96 | O116: 126.98 | P116: 293.82 | Q116: 70.28 | R116: 4.27
G117: Белки г | H117: Жиры г | I117: Углеводы г | J117: Калорийность | K117: Витамин В1 мг | L117: Витамин С,мг | M117: Витамин А мг | N117: Витамин Е мг | O117: СА, мг | P117: Р, мг | Q117: Мg, мг | R117: Fe, мг
A118: ИТОГО ЗА 12 ДНЕЙ: | G118: =SUM(G59+G115) -> 257.30 | H118: 280.48 | I118: 1204.45 | J118: 8482.48 | K118: 3.27 | L118: 298.51 | M118: 3.07 | N118: 39.95 | O118: 1639.25 | P118: 3535.58 | Q118: 808.57 | R118: 47.50
A119: В среднем в день: | G119: =AVERAGE(G118/12) -> 21.44 | H119: =AVERAGE(H118/12) -> 23.37 | I119: 100.37 | J119: 706.87 | K119: 0.27 | L119: 24.88 | M119: 0.26 | N119: 3.33 | O119: 136.60 | P119: 294.63 | Q119: 67.38 | R119: 3.96
A121: Примечание: при составлении меню использованы
A122: 1. СанПиН 2.3/2.4.3590-20 "Санитарно-эпидемиологические требования к организации общественного питания населения"
A123: 2. Технико-технологические карты разработанные ООО "Школьное питание"
A124: 3. Сборник технических нормативов –Сборник рецептур блюд и кулинарных изделий для питания детей в образовательных организациях / / под ред. М.П. Могильного и Т.В. Тутельяна. –М.: ДеЛипринт, 2017 г.
A125: конт.тел.:8(8552) 707107
